bitfinex/quotes_SOLUSD_20250625
["timestamp","ask_amount","ask_price","bid_price","bid_amount"]
[1750825506031,10.44285913,145.54,145.49,10.44519976]
[1750825508145,10.44285913,145.54,145.5,3.57187514]
[1750825508741,10.44285913,145.54,145.5,10.44469694]
[1750825510032,3.57187514,145.54,145.5,10.44469694]
[1750825512761,3.57187514,145.54,145.49,10.44519976]
[1750825513564,8.0097,145.55,145.51,3.57187514]
[1750825513738,8.0097,145.55,145.53,3.57187514]
[1750825515152,8.0097,145.55,145.53,10.44322113]
[1750825515540,8.0097,145.55,145.53,6.87134599]
[1750825516356,8.0097,145.55,145.52,10.443677]
[1750825518761,3.57187514,145.53,145.43,1.5682]
[1750825518964,3.57187514,145.49,145.44,3.57187514]
[1750825519204,3.57187514,145.47,145.43,3.57187514]
[1750825519464,9.81727514,145.47,145.43,3.57187514]
[1750825520868,9.81727514,145.47,145.43,18.64964886]
[1750825521246,9.81727514,145.47,145.42,16.48850834]
[1750825521449,16.69155932,145.47,145.42,16.48850834]
[1750825522986,16.69155932,145.47,145.42,12.9166332]
[1750825523276,16.69155932,145.47,145.42,9.61187514]
[1750825523648,16.69155932,145.47,145.42,16.48847144]
[1750825524052,3.57187514,145.43,145.37,18.64964886]
[1750825524275,3.57187514,145.43,145.39,18.64964886]
[1750825524844,3.57187514,145.43,145.39,22.221524]
[1750825525058,3.57187514,145.43,145.39,29.09946279]
[1750825526353,5.57268221,145.43,145.39,31.10026986]
[1750825528775,7.14518221,145.44,145.39,31.10026986]
[1750825531987,1.5725,145.44,145.41,18.64964886]
[1750825532160,1.5725,145.44,145.41,24.22233107]
[1750825534092,1.5725,145.44,145.41,31.09920088]
[1750825543598,6.2454,145.47,145.43,5.57268221]
[1750825543801,6.2454,145.47,145.44,5.57268221]
[1750825543972,6.2454,145.47,145.45,5.57268221]
[1750825546180,6.2454,145.47,145.44,12.44806097]
[1750825554301,6.2454,145.47,145.44,3.56426384]
[1750825555402,6.2454,145.47,145.44,6.8754059]
[1750825557195,9.80966384,145.47,145.44,6.8754059]
[1750825560426,6.2454,145.47,145.45,18.64964886]
[1750825560707,1.5167,145.48,145.45,22.2139127]
[1750825560895,1.5167,145.48,145.45,18.64964886]
[1750825561512,1.5167,145.48,145.45,22.2139127]
[1750825562605,1.5167,145.48,145.46,6.87474219]
[1750825571018,3.56426384,145.5,145.46,6.87474219]
[1750825571019,8.0737,145.51,145.46,10.43900603]
[1750825571217,11.63796384,145.51,145.46,10.43900603]
[1750825572119,8.0737,145.51,145.46,10.43900603]
[1750825572308,11.63796384,145.51,145.47,22.2139127]
[1750825573998,11.63796384,145.51,145.48,6.87379708]
[1750825574201,8.0737,145.51,145.48,6.87379708]
[1750825575623,3.56426384,145.53,145.49,22.2139127]
[1750825575825,18.93495492,145.54,145.49,22.2139127]
[1750825575996,18.93495492,145.54,145.5,6.87285223]
[1750825576399,18.93495492,145.54,145.5,10.43711607]
[1750825576625,15.37069108,145.54,145.52,3.56426384]
[1750825576932,15.37069108,145.54,145.51,3.56426384]
[1750825577724,13.75379108,145.54,145.52,29.08582034]
[1750825577904,3.56426384,145.58,145.53,22.2139127]
[1750825578327,7.5982,145.59,145.54,3.56426384]
[1750825578524,11.16246384,145.59,145.54,3.56426384]
[1750825578905,3.56426384,145.58,145.54,3.56426384]
[1750825579727,3.56426384,145.58,145.53,18.64964886]
[1750825579924,3.56426384,145.58,145.54,10.43494596]
[1750825580326,12.68957857,145.59,145.54,12.43197734]
[1750825580519,26.0,145.6,145.54,12.43197734]
[1750825580816,5.56129522,145.59,145.54,12.43197734]
[1750825583822,5.56129522,145.6,145.55,24.21094408]
[1750825584026,5.56129522,145.6,145.56,5.56129522]
[1750825584536,13.20929522,145.61,145.57,12.43084251]
[1750825584714,5.56129522,145.62,145.58,5.56129522]
[1750825585226,13.12729971,145.64,145.6,5.56129522]
[1750825585227,11.82219522,145.64,145.6,5.56129522]
[1750825585536,6.2609,145.64,145.6,5.56129522]
[1750825586236,16.55242985,145.67,145.62,24.21094408]
[1750825586443,22.11372507,145.67,145.63,6.86671702]
[1750825586639,22.11372507,145.67,145.63,12.42801224]
[1750825586827,5.56129522,145.68,145.64,5.56129522]
[1750825587021,10.64163168,145.69,145.64,5.56129522]
[1750825587337,5.56129522,145.69,145.65,5.56129522]
[1750825588063,8.1689,145.7,145.66,5.56129522]
[1750825588226,6.5577,145.7,145.67,5.56129522]
[1750825588541,5.56129522,145.72,145.67,12.42602847]
[1750825588716,5.56129522,145.7,145.64,18.64964886]
[1750825588916,5.56129522,145.66,145.62,24.64964886]
[1750825590137,5.56129522,145.66,145.62,31.51678819]
[1750825590819,5.56129522,145.66,145.62,37.07808341]
[1750825591448,26.0,145.68,145.62,37.07808341]
[1750825591626,5.56129522,145.67,145.62,37.07808341]
[1750825593055,5.56129522,145.66,145.62,31.51678819]
[1750825593349,5.56129522,145.66,145.62,37.07808341]
[1750825593641,5.56129522,145.66,145.62,6.0]
[1750825593852,6.0218,145.67,145.62,6.0]
[1750825594138,5.56129522,145.65,145.62,6.0]
[1750825596345,12.42666876,145.66,145.62,11.56129522]
[1750825598249,5.56129522,145.66,145.62,11.56129522]
[1750825602629,5.56129522,145.66,145.62,18.42846665]
[1750825603558,5.56129522,145.66,145.62,12.86717143]
[1750825603748,5.56129522,145.66,145.62,18.42846665]
[1750825604337,12.42673025,145.66,145.62,11.56129522]
[1750825604537,12.42673025,145.66,145.62,6.0]
[1750825604841,6.86543503,145.66,145.62,6.0]
[1750825605037,12.42673025,145.66,145.62,6.0]
[1750825605554,6.86543503,145.66,145.62,6.0]
[1750825605767,12.42673025,145.66,145.62,6.0]
[1750825607060,5.56129522,145.65,145.62,6.0]
[1750825607355,5.56129522,145.65,145.58,26.0]
[1750825607356,5.56129522,145.63,145.59,18.64964886]
[1750825607939,5.56129522,145.63,145.59,5.56129522]
[1750825608145,5.56129522,145.63,145.59,12.42974185]
[1750825613538,5.56129522,145.64,145.59,12.42974185]
[1750825614843,5.56129522,145.64,145.6,5.56129522]
[1750825616063,12.42756477,145.64,145.6,5.56129522]
[1750825618869,12.42756477,145.64,145.6,12.42939008]
[1750825622664,12.42756477,145.64,145.6,18.64964886]
[1750825624383,12.42756477,145.64,145.6,25.51770898]
[1750825625467,5.56129522,145.62,145.58,5.56129522]
[1750825626056,5.56129522,145.63,145.59,5.56129522]
[1750825626458,12.42818867,145.63,145.59,5.56129522]
[1750825630272,5.56129522,145.64,145.6,5.56129522]
[1750825631359,5.10054105,145.66,145.61,24.21094408]
[1750825631560,5.56129522,145.66,145.62,5.56129522]
[1750825631782,42.68363627,145.67,145.62,5.56129522]
[1750825631990,37.58309522,145.67,145.62,5.56129522]
[1750825632305,14.68212404,145.67,145.62,3.55517236]
[1750825632502,35.57697236,145.67,145.62,3.55517236]
[1750825633291,40.68372183,145.67,145.62,3.55517236]
[1750825633585,40.68372183,145.67,145.63,6.86671702]
[1750825634307,31.10674947,145.67,145.63,12.42170836]
[1750825634501,151.75499134,145.68,145.63,12.42170836]
[1750825635918,151.75499134,145.68,145.64,5.55499134]
[1750825636124,5.55499134,145.68,145.64,5.55499134]
[1750825636300,5.10702205,145.68,145.64,5.55499134]
[1750825636501,10.66201339,145.68,145.64,5.55499134]
[1750825637516,5.10702205,145.68,145.64,5.55499134]
[1750825638013,5.10702205,145.68,145.65,12.42076545]
[1750825639107,5.10702205,145.68,145.66,5.55499134]
[1750825639318,5.10633097,145.69,145.66,5.55499134]
[1750825640205,5.55499134,145.7,145.66,5.55499134]
[1750825640402,10.65929425,145.7,145.66,5.55499134]
[1750825641025,5.55499134,145.69,145.65,12.42076545]
[1750825643234,5.10430291,145.7,145.65,12.42076545]
[1750825643523,5.55499134,145.69,145.65,12.42076545]
[1750825645407,5.10430291,145.7,145.66,5.55499134]
[1750825645606,5.55499134,145.7,145.66,5.55499134]
[1750825646423,5.55499134,145.7,145.66,12.42002243]
[1750825646730,5.55499134,145.69,145.66,6.86503109]
[1750825647135,5.55499134,145.67,145.57,1.5557]
[1750825647333,5.55499134,145.67,145.58,5.55499134]
[1750825647334,5.55499134,145.62,145.58,5.55499134]
[1750825647519,5.55499134,145.62,145.57,31.15336429]
[1750825647721,5.55499134,145.62,145.58,18.64964886]
[1750825648539,5.55499134,145.61,145.58,18.64964886]
[1750825649610,5.55499134,145.61,145.58,25.51869594]
[1750825653921,5.55499134,145.59,145.56,5.98]
[1750825655356,5.55499134,145.6,145.56,12.84996546]
[1750825660157,5.55499134,145.6,145.56,18.4049568]
[1750825662238,34.1937,145.63,145.57,24.2046402]
[1750825662449,5.55499134,145.61,145.57,24.2046402]
[1750825663761,5.55499134,145.61,145.58,6.86907542]
[1750825666045,6.86583498,145.65,145.59,5.55499134]
[1750825666247,5.55499134,145.64,145.6,5.55499134]
[1750825667452,5.55499134,145.64,145.6,12.42287094]
[1750825669653,6.86586097,145.65,145.6,12.42287094]
[1750825669853,5.55499134,145.64,145.6,12.42287094]
[1750825672649,5.55499134,145.67,145.62,5.55499134]
[1750825672969,5.55499134,145.67,145.63,5.55499134]
[1750825675252,17.5092445,145.68,145.63,5.55499134]
[1750825676952,12.41971526,145.68,145.63,5.55499134]
[1750825678162,6.86472392,145.68,145.63,5.55499134]
[1750825678479,6.86472392,145.68,145.63,12.4216227]
[1750825678679,12.41971526,145.68,145.63,12.4216227]
[1750825679574,12.41971526,145.68,145.61,6.86766018]
[1750825679760,17.50953806,145.68,145.63,5.55499134]
[1750825680458,5.55499134,145.67,145.63,5.55499134]
[1750825683083,5.55499134,145.67,145.63,12.42168789]
[1750825687891,32.86408502,145.69,145.63,6.86669655]
[1750825688094,5.55499134,145.66,145.62,12.42205652]
[1750825688395,3.55561936,145.66,145.62,6.86706518]
[1750825689290,6.86508581,145.67,145.62,6.86706518]
[1750825689479,3.55561936,145.66,145.62,6.86706518]
[1750825689683,3.55561936,145.64,145.6,3.55561936]
[1750825690107,3.55561936,145.64,145.59,10.42422297]
[1750825690605,3.55561936,145.64,145.6,3.55561936]
[1750825692511,5.55701278,145.64,145.6,5.55701278]
[1750825692722,5.55701278,145.64,145.59,5.55701278]
[1750825692894,5.55701278,145.6,145.54,12.42797608]
[1750825693206,5.55701278,145.58,145.54,12.42797608]
[1750825696298,5.55701278,145.58,145.54,6.8709633]
[1750825696499,5.55701278,145.58,145.54,12.42797608]
[1750825698989,5.55701278,145.57,145.54,6.8709633]
[1750825699386,6.868307,145.6,145.54,6.8709633]
[1750825699609,5.55701278,145.59,145.54,12.42797608]
[1750825700791,5.55701278,145.59,145.56,6.87001923]
[1750825702316,34.80781475,145.61,145.56,6.87001923]
[1750825702613,5.55701278,145.59,145.56,6.87001923]
[1750825703617,26.0,145.63,145.56,12.42703201]
[1750825703806,5.55701278,145.62,145.58,5.55701278]
[1750825704314,5.55701278,145.63,145.59,5.55701278]
[1750825707133,5.55701278,145.64,145.6,6.86813186]
[1750825708328,5.55701278,145.64,145.6,12.42514464]
[1750825710430,5.55701278,145.64,145.6,5.55701278]
[1750825712136,5.55701278,145.64,145.6,12.42495704]
[1750825717939,12.42345043,145.64,145.58,6.86907542]
[1750825718238,3.55790905,145.61,145.58,6.86907542]
[1750825719319,3.55790905,145.62,145.58,6.86907542]
[1750825720435,5.558797,145.62,145.58,6.86907542]
[1750825721139,5.558797,145.62,145.58,12.42787242]
[1750825721319,5.558797,145.63,145.58,12.42787242]
[1750825721631,5.558797,145.63,145.59,5.558797]
[1750825722624,5.558797,145.64,145.59,5.558797]
[1750825722918,12.42473679,145.65,145.6,5.558797]
[1750825723528,12.42473679,145.65,145.6,12.42659593]
[1750825725639,5.558797,145.65,145.6,12.42659593]
[1750825727749,12.42470429,145.65,145.6,12.42659593]
[1750825729929,12.42470429,145.65,145.57,24.68082956]
[1750825729930,5.558797,145.62,145.58,12.42767421]
[1750825730650,5.558797,145.62,145.58,6.86887721]
[1750825732448,6.86698866,145.63,145.58,12.42767421]
[1750825732656,5.558797,145.62,145.58,12.42767421]
[1750825733652,12.42604138,145.62,145.58,5.558797]
[1750825734153,12.42604138,145.62,145.58,12.42787172]
[1750825737559,12.42604138,145.62,145.58,5.558797]
[1750825740862,6.86724438,145.62,145.58,5.558797]
[1750825741040,12.42604138,145.62,145.58,5.558797]
[1750825742352,10.4247481,145.62,145.58,3.55750372]
[1750825750863,6.86724438,145.62,145.58,3.55750372]
[1750825761163,11.97747361,145.65,145.59,3.55750372]
[1750825761366,3.55750372,145.63,145.59,3.55750372]
[1750825763788,10.42425699,145.63,145.59,3.55750372]
[1750825764383,6.86675327,145.63,145.59,10.42602633]
[1750825764592,5.11165851,145.65,145.62,3.55750372]
[1750825764884,3.55750372,145.63,145.59,22.20715258]
[1750825766773,10.42403343,145.64,145.59,29.07574796]
[1750825767085,3.55750372,145.64,145.59,29.07574796]
[1750825767580,3.55750372,145.65,145.6,3.55750372]
[1750825767783,5.11141081,145.64,145.6,10.42531705]
[1750825767982,3.55750372,145.65,145.6,10.42531705]
[1750825768187,5.11103633,145.64,145.6,10.42531705]
[1750825768484,3.55750372,145.65,145.6,10.42531705]
[1750825768687,5.11095884,145.64,145.6,10.42531705]
[1750825768872,3.55750372,145.65,145.6,10.42531705]
[1750825769071,5.11094177,145.64,145.6,10.42531705]
[1750825769272,3.55750372,145.65,145.6,10.42531705]
[1750825769578,5.11189251,145.64,145.6,10.42531705]
[1750825769876,3.55750372,145.65,145.6,10.42531705]
[1750825770070,5.11180349,145.64,145.6,10.42531705]
[1750825770273,3.55750372,145.65,145.6,10.42531705]
[1750825770464,5.11221476,145.64,145.6,10.42531705]
[1750825770663,3.55750372,145.65,145.6,10.42531705]
[1750825770871,5.11194372,145.64,145.6,10.42531705]
[1750825771075,3.55750372,145.65,145.6,10.42531705]
[1750825771266,5.1119615,145.64,145.6,10.42531705]
[1750825771479,3.55750372,145.65,145.6,10.42531705]
[1750825771670,5.11225056,145.64,145.6,10.42531705]
[1750825771871,3.55750372,145.65,145.6,10.42531705]
[1750825772079,5.11225304,145.64,145.6,10.42531705]
[1750825772272,3.55750372,145.65,145.6,10.42531705]
[1750825772463,5.11275024,145.64,145.6,10.42531705]
[1750825772662,3.55750372,145.65,145.6,10.42531705]
[1750825772960,5.11257762,145.64,145.6,10.42531705]
[1750825773289,3.55750372,145.65,145.6,10.42531705]
[1750825773458,5.1134678,145.64,145.6,10.42531705]
[1750825773663,3.55750372,145.65,145.6,10.42531705]
[1750825773866,5.1134678,145.64,145.6,10.42531705]
[1750825774164,3.55750372,145.65,145.6,10.42531705]
[1750825774365,5.11346656,145.64,145.6,10.42531705]
[1750825774668,3.55750372,145.65,145.6,10.42531705]
[1750825774867,5.11388811,145.64,145.6,10.42531705]
[1750825775068,3.55750372,145.65,145.6,10.42531705]
[1750825775376,5.11388907,145.64,145.6,10.42531705]
[1750825775577,3.55750372,145.65,145.6,10.42531705]
[1750825775781,5.11361151,145.64,145.6,10.42531705]
[1750825775982,3.55750372,145.65,145.6,10.42531705]
[1750825776180,5.11361246,145.64,145.61,3.55750372]
[1750825776400,5.11389684,145.65,145.62,3.55750372]
[1750825776686,10.42239254,145.67,145.62,3.55750372]
[1750825776889,5.11312325,145.66,145.62,3.55750372]
[1750825777092,5.11312325,145.65,145.62,3.55750372]
[1750825777303,3.55750372,145.66,145.61,22.20715258]
[1750825777983,3.55750372,145.66,145.62,3.55750372]
[1750825778205,6.86488882,145.67,145.62,3.55750372]
[1750825778364,8.66947533,145.66,145.62,10.42457253]
[1750825778569,3.55750372,145.66,145.62,10.42457253]
[1750825780486,5.10911405,145.66,145.62,10.42457253]
[1750825780683,5.10911405,145.66,145.63,3.55750372]
[1750825780993,5.10933532,145.67,145.63,3.55750372]
[1750825781187,36.422019,145.68,145.63,3.55750372]
[1750825781382,3.55750372,145.67,145.63,3.55750372]
[1750825781568,29.55750372,145.68,145.63,3.55750372]
[1750825781980,3.55750372,145.67,145.63,22.20715258]
[1750825782880,3.55750372,145.67,145.64,6.86624553]
[1750825783793,34.6640667,145.68,145.64,6.86624553]
[1750825784098,34.6640667,145.68,145.64,10.42374925]
[1750825785182,34.66185345,145.68,145.64,10.42374925]
[1750825785784,29.55750372,145.68,145.64,10.42374925]
[1750825787098,29.55750372,145.68,145.64,6.86624553]
[1750825792298,26.0,145.68,145.64,6.86624553]
[1750825792594,29.55750372,145.68,145.64,6.86624553]
[1750825794591,29.55750372,145.68,145.64,10.42374925]
[1750825795499,57.45750372,145.68,145.64,10.42374925]
[1750825796801,53.9,145.68,145.64,10.42374925]
[1750825796995,57.45750372,145.68,145.64,10.42374925]
[1750825797419,60.76439676,145.68,145.57,65.3371519]
[1750825797588,3.55750372,145.63,145.58,18.64964886]
[1750825797792,31.45750372,145.64,145.59,3.55750372]
[1750825798393,31.45750372,145.64,145.6,6.86813186]
[1750825798705,31.45750372,145.64,145.6,10.42563558]
[1750825801488,27.9,145.64,145.6,10.42563558]
[1750825806615,27.9,145.64,145.61,3.55750372]
[1750825807719,27.9,145.64,145.61,10.42477245]
[1750825809326,5.1051516,145.66,145.63,3.55750372]
[1750825809533,26.0,145.68,145.64,3.55750372]
[1750825809735,58.98654235,145.68,145.64,3.55750372]
[1750825809908,53.88,145.68,145.64,3.55750372]
[1750825811546,53.88,145.68,145.64,10.42331329]
[1750825812135,57.43750372,145.68,145.64,10.42331329]
[1750825813738,57.43750372,145.68,145.62,25.51683743]
[1750825813939,57.43750372,145.68,145.64,3.55750372]
[1750825815851,29.55750372,145.68,145.65,6.86577411]
[1750825816054,62.54291652,145.68,145.65,6.86577411]
[1750825816238,3.55750372,145.68,145.65,6.86577411]
[1750825816555,3.55750372,145.68,145.65,10.42327783]
[1750825816556,27.88,145.68,145.65,10.42327783]
[1750825816759,5.10542159,145.68,145.65,10.42327783]
[1750825818357,5.10542159,145.68,145.64,3.55750372]
[1750825819663,5.10542159,145.68,145.64,10.4235099]
[1750825819958,32.98542159,145.68,145.64,10.4235099]
[1750825820462,36.54292531,145.68,145.64,10.4235099]
[1750825822161,3.55750372,145.66,145.62,22.20715258]
[1750825822462,3.55750372,145.65,145.61,5.15270372]
[1750825823049,3.55750372,145.65,145.62,6.86691632]
[1750825824665,10.42283489,145.66,145.62,6.86691632]
[1750825825963,3.55750372,145.64,145.6,3.55750372]
[1750825826153,3.55750372,145.64,145.59,28.12715258]
[1750825826341,3.55750372,145.63,145.59,22.20715258]
[1750825827040,3.55750372,145.63,145.6,6.86797376]
[1750825829848,3.55750372,145.64,145.6,6.86797376]
[1750825830444,3.55750372,145.64,145.6,10.42547748]
[1750825830642,43.40849572,145.65,145.6,10.42547748]
[1750825836177,3.55750372,145.64,145.6,10.42547748]
[1750825837165,43.40849572,145.65,145.6,10.42547748]
[1750825840373,38.30357717,145.65,145.6,10.42547748]
[1750825842891,3.55750372,145.64,145.6,6.86797376]
[1750825843185,3.55750372,145.64,145.6,10.42547748]
[1750825843857,38.30357717,145.65,145.6,10.42547748]
[1750825844485,43.40919435,145.65,145.6,10.42547748]
[1750825851309,43.40919435,145.65,145.61,10.42515454]
[1750825852509,36.5431209,145.65,145.61,6.86765082]
[1750825854116,31.43750372,145.65,145.61,6.86765082]
[1750825854501,27.88,145.65,145.61,6.86765082]
[1750825855116,32.98745547,145.65,145.61,6.86765082]
[1750825855695,5.10745547,145.65,145.61,3.55750372]
[1750825855895,57.41750372,145.66,145.62,3.55750372]
[1750825856614,57.41750372,145.66,145.6,6.86813186]
[1750825856802,64.28283749,145.66,145.62,3.55750372]
[1750825857498,64.28283749,145.66,145.61,3.55750372]
[1750825858222,64.28283749,145.66,145.61,10.4250645]
[1750825858522,60.72533377,145.66,145.61,10.4250645]
[1750825858723,64.28283749,145.66,145.61,10.4250645]
[1750825860626,5.11169198,145.65,145.61,10.4250645]
[1750825863320,11.97754134,145.65,145.61,10.4250645]
[1750825863536,15.53504506,145.65,145.59,25.51795257]
[1750825863702,15.53504506,145.65,145.6,3.55750372]
[1750825864024,31.41750372,145.64,145.6,3.55750372]
[1750825864331,31.41750372,145.64,145.59,29.07545629]
[1750825865406,31.41750372,145.64,145.6,3.55750372]
[1750825866104,38.28375923,145.64,145.6,3.55750372]
[1750825876846,34.72625551,145.64,145.61,3.55750372]
[1750825878536,27.86,145.64,145.61,3.55750372]
[1750825880443,29.55750372,145.66,145.61,3.55750372]
[1750825880444,60.72549175,145.66,145.62,3.55750372]
[1750825880743,5.12526728,145.65,145.62,3.55750372]
[1750825880935,5.12526728,145.64,145.62,3.55750372]
[1750825881137,60.72549175,145.66,145.62,3.55750372]
[1750825881324,5.12539427,145.65,145.62,3.55750372]
[1750825881520,60.72549175,145.66,145.62,3.55750372]
[1750825881724,5.12539382,145.65,145.62,3.55750372]
[1750825881927,64.28299547,145.66,145.62,3.55750372]
[1750825882119,5.12538337,145.65,145.62,3.55750372]
[1750825882319,64.28299547,145.66,145.62,3.55750372]
[1750825882520,5.12516601,145.65,145.62,3.55750372]
[1750825882720,64.28299547,145.66,145.62,3.55750372]
[1750825883043,5.12517389,145.65,145.62,3.55750372]
[1750825883336,64.28299547,145.66,145.62,3.55750372]
[1750825883541,5.12511587,145.65,145.62,3.55750372]
[1750825883844,64.28299547,145.66,145.62,3.55750372]
[1750825884049,5.12506735,145.65,145.62,3.55750372]
[1750825884342,64.28299547,145.66,145.62,3.55750372]
[1750825884648,5.12497899,145.65,145.62,3.55750372]
[1750825884945,64.28299547,145.66,145.62,3.55750372]
[1750825885240,5.12502846,145.65,145.62,3.55750372]
[1750825885443,64.28299547,145.66,145.62,3.55750372]
[1750825885632,5.12493891,145.65,145.62,3.55750372]
[1750825885817,64.28299547,145.66,145.62,3.55750372]
[1750825886022,5.12493756,145.65,145.62,3.55750372]
[1750825886346,64.28299547,145.66,145.62,3.55750372]
[1750825886550,5.12480146,145.65,145.62,3.55750372]
[1750825886722,64.28299547,145.66,145.62,3.55750372]
[1750825886922,5.1253528,145.65,145.62,3.55750372]
[1750825887151,64.28299547,145.66,145.62,3.55750372]
[1750825887352,5.12526852,145.65,145.62,3.55750372]
[1750825887521,64.28299547,145.66,145.62,3.55750372]
[1750825887852,5.12534215,145.65,145.62,3.55750372]
[1750825888040,64.28299547,145.66,145.62,3.55750372]
[1750825888242,5.12536019,145.65,145.62,3.55750372]
[1750825888549,64.26299547,145.66,145.62,3.55750372]
[1750825888731,5.12527012,145.65,145.62,3.55750372]
[1750825888934,64.26299547,145.66,145.62,3.55750372]
[1750825889234,5.1252011,145.65,145.62,10.42465674]
[1750825889434,64.26299547,145.66,145.62,10.42465674]
[1750825889744,5.12505019,145.65,145.62,10.42465674]
[1750825889944,64.26299547,145.66,145.62,10.42465674]
[1750825890131,5.12493609,145.65,145.62,10.42465674]
[1750825890432,64.26299547,145.66,145.62,10.42465674]
[1750825890631,5.12397397,145.65,145.62,10.42465674]
[1750825890845,64.26299547,145.66,145.62,10.42465674]
[1750825891049,5.12235911,145.65,145.62,10.42465674]
[1750825891344,31.39750372,145.64,145.6,3.55750372]
[1750825892025,31.39750372,145.64,145.59,22.20715258]
[1750825893050,31.39750372,145.64,145.59,29.07572274]
[1750825893551,31.39750372,145.64,145.6,3.55750372]
[1750825894147,27.84,145.64,145.6,3.55750372]
[1750825896557,27.84,145.64,145.6,10.42561695]
[1750825896728,34.70631091,145.64,145.6,10.42561695]
[1750825897351,27.84,145.64,145.6,10.42561695]
[1750825897651,27.84,145.64,145.61,3.55750372]
[1750825898643,27.84,145.64,145.61,10.4251494]
[1750825903138,27.84,145.64,145.6,10.42563558]
[1750825904254,27.84,145.64,145.56,18.64964886]
[1750825904255,3.55750372,145.61,145.56,18.64964886]
[1750825904456,3.55750372,145.59,145.56,18.64964886]
[1750825904759,3.55750372,145.59,145.55,10.42799496]
[1750825905933,10.42613455,145.59,145.55,10.42799496]
[1750825907661,31.39750372,145.61,145.56,22.20715258]
[1750825907867,31.39750372,145.61,145.57,3.55750372]
[1750825908249,31.39750372,145.61,145.56,18.64964886]
[1750825908552,31.39750372,145.61,145.57,3.55750372]
[1750825909461,31.39750372,145.61,145.57,6.86954729]
[1750825910939,31.39750372,145.61,145.57,10.42705101]
[1750825911551,10.42498376,145.62,145.58,10.42652664]
[1750825912854,10.42498376,145.62,145.58,3.55750372]
[1750825915973,10.42498376,145.62,145.57,6.86934059]
[1750825916173,10.42498376,145.62,145.58,3.55750372]
[1750825917647,6.86748004,145.62,145.58,3.55750372]
[1750825917849,10.42498376,145.62,145.58,3.55750372]
[1750825918969,10.42498376,145.62,145.57,10.42684431]
[1750825923872,3.55750372,145.61,145.57,18.64964886]
[1750825924468,3.55750372,145.58,145.55,18.64964886]
[1750825926071,3.55750372,145.59,145.55,25.52009411]
[1750825926464,38.24587412,145.6,145.55,29.07759783]
[1750825926673,27.82,145.6,145.57,3.55750372]
[1750825926965,38.24571763,145.6,145.55,29.07759783]
[1750825927172,3.55750372,145.59,145.55,18.64964886]
[1750825928268,10.42613794,145.59,145.55,18.64964886]
[1750825928470,6.86863422,145.59,145.52,6.87190764]
[1750825928648,3.55750372,145.57,145.53,22.20715258]
[1750825929157,6.86863422,145.59,145.52,3.55750372]
[1750825929357,3.55750372,145.56,145.52,3.55750372]
[1750825929877,3.55750372,145.57,145.52,3.55750372]
[1750825930056,3.55750372,145.57,145.53,3.55750372]
[1750825930577,10.42721555,145.57,145.53,3.55750372]
[1750825930873,10.42721555,145.57,145.51,24.54964886]
[1750825930874,3.55750372,145.56,145.51,9.45750372]
[1750825931058,3.55750372,145.55,145.51,9.45750372]
[1750825931458,3.55750372,145.55,145.51,3.55750372]
[1750825932975,3.55750372,145.55,145.51,10.42966881]
[1750825933174,34.4168,145.56,145.53,3.55750372]
[1750825933385,27.84,145.56,145.53,3.55750372]
[1750825934376,27.84,145.56,145.54,3.55750372]
[1750825934588,1.655,145.57,145.54,3.55750372]
[1750825936471,44.84306548,145.59,145.55,3.55750372]
[1750825936675,34.4168,145.59,145.55,3.55750372]
[1750825937474,37.97430372,145.59,145.55,3.55750372]
[1750825937780,10.13430372,145.59,145.55,3.55750372]
[1750825938169,17.00326586,145.59,145.54,10.42844099]
[1750825938497,3.55750372,145.58,145.54,10.42844099]
[1750825940884,3.55750372,145.58,145.53,3.55750372]
[1750825940885,10.42659086,145.58,145.53,3.55750372]
[1750825941677,10.42659086,145.58,145.53,10.42884279]
[1750825942368,6.86908714,145.58,145.53,10.42884279]
[1750825942568,10.42659086,145.58,145.53,10.42884279]
[1750825943990,10.42659086,145.58,145.54,3.55750372]
[1750825949677,17.00307878,145.59,145.55,3.55750372]
[1750825952296,13.44557506,145.59,145.55,3.55750372]
[1750825952998,17.00307878,145.59,145.55,3.55750372]
[1750825953689,10.42627878,145.59,145.55,3.55750372]
[1750825955005,10.42627878,145.59,145.54,3.55750372]
[1750825956911,10.42627878,145.59,145.54,10.42826677]
[1750825957280,10.42627878,145.59,145.54,6.87076305]
[1750825957482,10.42627878,145.59,145.54,10.42826677]
[1750825959608,64.26584305,145.6,145.55,3.55750372]
[1750825959977,64.24584305,145.6,145.55,3.55750372]
[1750825960900,64.24584305,145.6,145.55,10.4277589]
[1750825963614,53.82,145.6,145.56,3.55750372]
[1750825964613,53.82,145.6,145.56,10.42724775]
[1750825966218,57.37750372,145.6,145.56,10.42724775]
[1750825967218,29.55750372,145.6,145.56,10.42724775]
[1750825974324,29.55750372,145.6,145.56,6.86974403]
[1750825974527,29.55750372,145.6,145.56,10.42724775]
[1750825978639,3.55750372,145.59,145.55,18.64964886]
[1750825979125,3.55750372,145.59,145.55,22.20715258]
[1750825979511,3.55750372,145.59,145.56,6.87001923]